fUSD/lending_fUSD_20240822
["ID","MTS","AMOUNT","RATE_DAILY","PERIOD"]
[335524821,1724307038899,-150.0,0.00010338,2]
[335524823,1724307038908,-186.04064742,0.00010343,2]
[335524825,1724307038918,-186.04064742,0.00010354,2]
[335524827,1724307038927,-150.0,0.00010356,2]
[335524829,1724307038936,-150.0,0.00010359,2]
[335524831,1724307038946,-186.04064742,0.00010365,2]
[335524833,1724307038955,-150.0,0.00010374,2]
[335524835,1724307038965,-186.04064742,0.00010376,2]
[335524837,1724307038974,-150.0,0.00010385,2]
[335524839,1724307038983,-186.04064742,0.00010387,2]
[335524841,1724307038993,-150.0,0.00010392,2]
[335524843,1724307039002,-150.0,0.00010395,2]
[335524845,1724307039012,-186.04064742,0.00010398,2]
[335524847,1724307039022,-1200.0,0.000104,3]
[335524849,1724307039032,-186.04064742,0.00010409,2]
[335524851,1724307039041,-150.0,0.0001041,2]
[335524852,1724307039051,-150.0,0.00010411,2]
[335524854,1724307039060,-186.04064742,0.0001042,2]
[335524856,1724307039069,-10000.0,0.00010422,2]
[335524858,1724307039078,-150.0,0.00010428,2]
[335524860,1724307039087,-618.59,0.00010429,2]
[335524862,1724307039096,-186.04064742,0.00010431,2]
[335524864,1724307039106,-150.0,0.00010437,2]
[335524866,1724307039115,-150.0,0.00010437,2]
[335524868,1724307039124,-186.04064742,0.00010443,2]
[335524870,1724307039134,-150.0,0.00010446,2]
[335524872,1724307039144,-302.264,0.00010447,2]
[335524874,1724307039154,-186.04064742,0.00010454,2]
[335524876,1724307039163,-150.0,0.00010463,2]
[335524877,1724307039172,-150.0,0.00010464,2]
[335524879,1724307039181,-186.04064742,0.00010465,2]
[335524881,1724307039191,-155.0,0.00010471,2]
[335524882,1724307039200,-186.04064742,0.00010476,2]
[335524884,1724307039210,-150.0,0.00010479,2]
[335524886,1724307039219,-150.0,0.00010482,2]
[335524887,1724307039229,-186.04064742,0.00010487,2]
[335524889,1724307039238,-150.0,0.00010489,2]
[335524891,1724307039247,-186.04064742,0.00010498,2]
[335524892,1724307039257,-2100.0,0.000105,2]
[335524894,1724307039266,-200.0,0.000105,3]
[335524895,1724307039275,-150.0,0.000105,2]
[335524897,1724307039284,-186.04064742,0.00010509,2]
[335524899,1724307039293,-150.0,0.00010515,2]
[335524901,1724307039303,-150.0,0.00010518,2]
[335524902,1724307039313,-186.04064742,0.0001052,2]
[335524904,1724307039322,-186.04064742,0.00010531,2]
[335524906,1724307039331,-150.0,0.00010536,2]
[335524907,1724307039341,-150.0,0.00010542,2]
[335524909,1724307039350,-186.04064742,0.00010542,2]
[335524911,1724307039359,-186.04064742,0.00010554,2]
[335524912,1724307039368,-150.0,0.00010554,2]
[335524914,1724307039377,-150.0,0.00010564,2]
[335524916,1724307039387,-186.04064742,0.00010565,2]
[335524917,1724307039398,-150.0,0.00010568,2]
[335524919,1724307039408,-150.0,0.00010572,2]
[335524921,1724307039417,-186.04064742,0.00010576,2]
[335524923,1724307039426,-186.04064742,0.00010587,2]
[335524924,1724307039435,-150.0,0.0001059,2]
[335524926,1724307039444,-150.0,0.00010594,2]
[335524928,1724307039453,-186.04064742,0.00010598,2]
[335524930,1724307039462,-200.0,0.000106,3]
[335524931,1724307039472,-150.0,0.00010608,2]
[335524933,1724307039481,-186.04064742,0.00010609,2]
[335524935,1724307039491,-186.04064742,0.0001062,2]
[335524937,1724307039500,-150.0,0.0001062,2]
[335524939,1724307039510,-150.0,0.0001062,2]
[335524940,1724307039519,-150.0,0.00010626,2]
[335524942,1724307039528,-186.04064742,0.00010631,2]
[335524944,1724307039537,-186.04064742,0.00010642,2]
[335524945,1724307039546,-150.0,0.00010644,2]
[335524947,1724307039557,-150.0,0.00010646,2]
[335524949,1724307039566,-150.0,0.00010648,2]
[335524950,1724307039576,-186.04064742,0.00010653,2]
[335524952,1724307039587,-150.0,0.00010662,2]
[335524954,1724307039596,-186.04064742,0.00010664,2]
[335524956,1724307039608,-150.0,0.00010672,2]
[335524957,1724307039618,-186.04064742,0.00010676,2]
[335524959,1724307039628,-150.0,0.0001068,2]
[335524961,1724307039638,-150.0,0.0001068,2]
[335524962,1724307039648,-500.0,0.00010684,2]
[335524964,1724307039657,-500.0,0.00010684,2]
[335524966,1724307039666,-500.0,0.00010684,2]
[335524968,1724307039678,-500.0,0.00010684,2]
[335524970,1724307039690,-500.0,0.00010684,2]
[335524972,1724307039699,-500.0,0.00010684,2]
[335524974,1724307039709,-554.99200468,0.00010684,2]
[335524976,1724307039719,-304.33714639,0.00010684,2]
[335524977,1724307039728,-500.0,0.00010684,2]
[335524979,1724307039739,-375.8552,0.00010684,2]
[335524981,1724307039749,-500.0,0.00010684,2]
[335524983,1724307039758,-500.0,0.00010684,2]
[335524985,1724307039767,-500.0,0.00010684,2]
[335524986,1724307039776,-500.0,0.00010684,2]
[335524988,1724307039785,-500.0,0.00010684,2]
[335524990,1724307039794,-500.0,0.00010684,2]
[335524992,1724307039803,-500.0,0.00010684,2]
[335524994,1724307039813,-511.10076947,0.00010684,2]
[335524995,1724307039822,-500.0,0.00010684,2]
[335524997,1724307039831,-500.0,0.00010684,2]
[335524999,1724307039840,-6573.03,0.00010684,2]
[335525001,1724307039850,-186.95013057,0.00010684,2]
[335525003,1724307039859,-500.0,0.00010684,2]
[335525005,1724307039869,-500.0,0.00010684,2]
[335525006,1724307039878,-803.18,0.00010684,2]
[335525008,1724307039888,-186.04064742,0.00010687,2]
[335525010,1724307039897,-623.0,0.00010693,2]
[335525012,1724307039910,-1923.0,0.00010693,2]
[335525014,1724307039920,-271.344,0.00010693,2]
[335525016,1724307039929,-447.0,0.00010693,2]
[335525017,1724307039939,-810.0,0.00010693,2]
[335525019,1724307039951,-599.971,0.00010693,2]
[335525021,1724307039960,-1138.0,0.00010693,2]
[335525023,1724307039970,-165.401,0.00010693,2]
[335525024,1724307039979,-552.0,0.00010693,2]
[335525026,1724307039988,-1897.0,0.00010693,2]
[335525028,1724307039997,-790.94,0.00010697,2]
[335525030,1724307040006,-11013.74,0.00010697,2]
[335525032,1724307040015,-509.33189067,0.00010697,2]
[335525033,1724307040023,-500.0,0.00010697,2]
[335525035,1724307040033,-186.04064742,0.00010698,2]
[335525037,1724307040042,-150.0,0.00010698,2]
[335525039,1724307040053,-150.0,0.00010699,2]
[335525041,1724307040063,-200.0,0.000107,3]
[335525043,1724307040072,-186.04064742,0.00010709,2]
[335525044,1724307040081,-150.0,0.00010712,2]
[335525046,1724307040091,-150.0,0.00010716,2]
[335525048,1724307040101,-186.04064742,0.0001072,2]
[335525050,1724307040111,-150.0,0.00010725,2]
[335525052,1724307040121,-186.04064742,0.00010731,2]
[335525054,1724307040130,-150.0,0.00010733,2]
[335525055,1724307040140,-150.0,0.00010734,2]
[335525057,1724307040153,-186.04064742,0.00010742,2]
[335525059,1724307040163,-200.0,0.00010745,2]
[335525061,1724307040172,-150.0,0.00010751,2]
[335525063,1724307040182,-150.0,0.00010752,2]
[335525064,1724307040191,-186.04064742,0.00010753,2]
[335525066,1724307040201,-186.04064742,0.00010764,2]
[335525068,1724307040210,-1078.20049,0.0001077,2]
[335525069,1724307040219,-150.0,0.0001077,2]
[335525071,1724307040228,-186.04064742,0.00010775,2]
[335525073,1724307040237,-150.0,0.00010777,2]
[335525075,1724307040248,-1078.20049,0.0001078,2]
[335525077,1724307040258,-150.0,0.00010781,2]
[335525078,1724307040267,-186.04064742,0.00010787,2]
[335525080,1724307040276,-150.0,0.00010788,2]
[335525082,1724307040286,-186.04064742,0.00010798,2]
[335525083,1724307040295,-520.10642969,0.00010799,2]
[335525085,1724307040304,-401.85092769,0.000108,2]
[335525087,1724307040314,-200.0,0.000108,3]
[335525089,1724307040324,-150.0,0.00010803,2]
[335525091,1724307040334,-150.0,0.00010806,2]
[335525093,1724307040345,-186.04064742,0.00010809,2]
[335525094,1724307040355,-150.0,0.00010817,2]
[335525096,1724307040364,-186.04064742,0.0001082,2]
[335525098,1724307040373,-1078.20048,0.0001082,2]
[335525100,1724307040383,-150.0,0.00010824,2]
[335525102,1724307040392,-150.0,0.00010829,2]
[335525104,1724307040402,-186.04064742,0.00010831,2]
[335525105,1724307040411,-20593.7308051,0.00010835,2]
[335525107,1724307040422,-1162.0,0.00010838,2]
[335525109,1724307040431,-3319.0,0.00010838,2]
[335525111,1724307040440,-352.348,0.00010838,2]
[335525113,1724307040449,-186.04064742,0.00010842,2]
[335525114,1724307040458,-150.0,0.00010842,2]
[335525116,1724307040468,-186.04064742,0.00010853,2]
[335525118,1724307040478,-150.0,0.00010856,2]
[335525119,1724307040487,-1078.20049,0.0001086,2]
[335525121,1724307040496,-150.0,0.0001086,2]
[335525123,1724307040506,-23130.91764602,0.00010861,2]
[335525125,1724307040516,-764.0,0.00010861,2]
[335525127,1724307040526,-293.785,0.00010862,2]
[335525129,1724307040535,-21779.0,0.00010862,2]
[335525130,1724307040544,-3728.0,0.00010862,2]
[335525132,1724307040554,-5847.0,0.00010862,2]
[335525134,1724307040565,-1205.0,0.00010862,2]
[335525136,1724307040575,-1674.0,0.00010862,2]
[335525138,1724307040584,-186.04064742,0.00010864,2]
[335525140,1724307040596,-5063.2985374,0.00010873,2]
[335525142,1724307040607,-107644.7579793,0.00010873,2]
[335525144,1724307040617,-1460.0075259,0.00010873,2]
[335525145,1724307040626,-17709.8382817,0.00010873,2]
[335525147,1724307040636,-648.2839584,0.00010873,2]
[335525149,1724307040645,-186.04064742,0.00010875,2]
[335525151,1724307040655,-161.45223879,0.00010877,2]
[335525152,1724307040664,-150.0,0.00010878,2]
[335525154,1724307040673,-500.0,0.00010879,2]
[335525156,1724307040682,-500.0,0.00010879,2]
[335525158,1724307040691,-500.0,0.00010879,2]
[335525159,1724307040700,-500.0,0.00010879,2]
[335525161,1724307040710,-500.0,0.00010879,2]
[335525163,1724307040720,-500.0,0.00010879,2]
[335525165,1724307040729,-500.0,0.00010879,2]
[335525167,1724307040738,-500.0,0.00010879,2]
[335525168,1724307040747,-500.0,0.00010879,2]
[335525170,1724307040757,-790.94,0.00010879,2]
[335525172,1724307040766,-790.94,0.00010879,2]
[335525174,1724307040776,-6573.03,0.00010879,2]
[335525176,1724307040785,-6573.03,0.00010879,2]
[335525177,1724307040795,-11013.74,0.00010879,2]
[335525179,1724307040804,-11013.74,0.00010879,2]
[335525181,1724307040813,-500.0,0.00010879,2]
[335525183,1724307040823,-440.11,0.00010879,2]
[335525184,1724307040832,-500.0,0.00010879,2]
[335525195,1724307040841,-500.0,0.00010879,2]
[335525197,1724307040955,-500.0,0.00010879,2]
[335525199,1724307040964,-500.0,0.00010879,2]
[335525200,1724307040973,-803.18,0.00010879,2]
[335525202,1724307040983,-803.18,0.00010879,2]
[335525204,1724307040992,-434170.03566163,0.0001088,2]
[335525206,1724307041002,-2000.0,0.0001088,2]
[335525208,1724307041011,-200.0,0.0001088,2]
[335525209,1724307041020,-1757.96955,0.0001088,2]
[335525211,1724307041030,-1757.96955,0.0001088,2]
[335525213,1724307041040,-1757.96955,0.0001088,2]
[335525214,1724307041048,-1078.20049,0.0001088,2]
[335525216,1724307041058,-150.0,0.00010882,2]
[335525218,1724307041067,-186.04064742,0.00010886,2]
[335525220,1724307041077,-4092.4743,0.00010889,2]
[335525221,1724307041086,-152.90664,0.0001089,2]
[335525223,1724307041095,-150.0,0.00010896,2]
[335525225,1724307041105,-186.04064742,0.00010898,2]
[335525227,1724307041115,-168.70149011,0.00010898,2]
[335525228,1724307041124,-172.62463792,0.00010898,2]
[335525230,1724307041133,-828.58346556,0.00010898,2]
[335525232,1724307041142,-352.01177964,0.00010898,2]
[335525234,1724307041153,-2486.48989694,0.00010899,2]
[335525236,1724307041162,-2486.48989689,0.00010899,2]
[335525237,1724307041171,-2486.48989689,0.00010899,2]
[335525239,1724307041181,-2486.48989689,0.00010899,2]
[335525241,1724307041190,-2486.48989689,0.00010899,2]
[335525243,1724307041200,-2486.48989689,0.00010899,2]
[335525245,1724307041210,-2486.48989689,0.00010899,2]
[335525246,1724307041219,-2486.48989689,0.00010899,2]
[335525248,1724307041228,-2486.48989689,0.00010899,2]
[335525250,1724307041237,-7090.54285005,0.00010899,2]
[335525252,1724307041247,-828.58346554,0.00010899,2]
[335525253,1724307041256,-352.01177964,0.00010899,2]
[335525255,1724307041265,-721.0,0.000109,3]
[335525257,1724307041274,-2486.48989689,0.000109,2]
[335525259,1724307041283,-7090.54285005,0.000109,2]
[335525260,1724307041293,-172.62463792,0.000109,2]
[335525262,1724307041302,-828.58346554,0.000109,2]
[335525264,1724307041311,-352.01177964,0.000109,2]
[335525266,1724307041321,-150.0,0.00010902,2]
[335525268,1724307041331,-255.0,0.00010904,2]
[335525270,1724307041340,-150.0,0.00010908,2]
[335525272,1724307041350,-186.04064742,0.00010909,2]
[335525273,1724307041359,-150.0,0.00010914,2]
[335525274,1724307041368,-186.04064742,0.0001092,2]
[335525275,1724307041377,-186.04064742,0.00010931,2]
[335525276,1724307041388,-317.42,0.00010932,2]
[335525277,1724307041397,-150.0,0.00010932,2]
[335525278,1724307041407,-150.0,0.00010932,2]
[335525279,1724307041417,-420.0,0.00010933,2]
[335525280,1724307041426,-150.0,0.00010934,2]
[335525281,1724307041435,-186.04064742,0.00010942,2]
[335525282,1724307041445,-2843.43146538,0.00010949,2]
[335525283,1724307041455,-150.0,0.0001095,2]
[335525284,1724307041465,-186.04064742,0.00010953,2]
[335525285,1724307041474,-306.72696288,0.00010958,2]
[335525286,1724307041483,-188.52177489,0.00010958,2]
[335525287,1724307041492,-161.662646,0.00010958,2]
[335525288,1724307041501,-151.660748,0.00010958,2]
[335525289,1724307041511,-161.662646,0.00010958,2]
[335525290,1724307041520,-151.660748,0.00010958,2]
[335525291,1724307041529,-161.662646,0.00010958,2]
[335525292,1724307041538,-151.660748,0.00010958,2]
[335525293,1724307041549,-161.662646,0.00010958,2]
[335525294,1724307041560,-151.660748,0.00010958,2]
[335525295,1724307041569,-161.662646,0.00010958,2]
[335525296,1724307041578,-161.662646,0.00010958,2]
[335525297,1724307041587,-151.660748,0.00010958,2]
[335525298,1724307041596,-151.660748,0.00010958,2]
[335525300,1724307041606,-151.660748,0.00010958,2]
[335525302,1724307041615,-195.998342,0.00010958,2]
[335525304,1724307041625,-195.998342,0.00010958,2]
[335525306,1724307041634,-195.998342,0.00010958,2]
[335525308,1724307041644,-199.59,0.00010959,2]
[335525310,1724307041655,-154.87,0.00010959,2]
[335525312,1724307041664,-150.28,0.00010959,2]
[335525314,1724307041674,-176.21,0.00010959,2]
[335525315,1724307041683,-250.0,0.00010959,2]
[335525317,1724307041692,-315.55,0.00010959,2]
[335525319,1724307041702,-244.63,0.00010959,2]
[335525321,1724307041710,-203.85,0.00010959,2]
[335525323,1724307041719,-500.0,0.0001096,2]
[335525325,1724307041730,-500.0,0.0001096,2]
[335525327,1724307041739,-150.0,0.0001096,2]
[335525329,1724307041748,-186.04064742,0.00010964,2]
[335525331,1724307041758,-500.0,0.00010966,2]
[335525333,1724307041767,-790.94,0.00010966,2]
[335525335,1724307041777,-11013.74,0.00010966,2]
[335525337,1724307041786,-500.0,0.00010966,2]
[335525339,1724307041796,-150.0,0.00010967,2]
[335525341,1724307041805,-297.134,0.00010967,2]
[335525343,1724307041815,-163.16,0.00010967,2]
[335525345,1724307041825,-150.0,0.00010967,2]
[335525347,1724307041835,-150.0,0.00010967,2]
[335525349,1724307041844,-1258.0,0.00010967,2]
[335525351,1724307041853,-1544.0,0.00010967,2]
[335525353,1724307041863,-150.0,0.00010968,2]
[335525355,1724307041873,-500.0,0.00010973,2]
[335525357,1724307041883,-500.0,0.00010973,2]
[335525359,1724307041892,-500.0,0.00010973,2]
[335525361,1724307041903,-500.0,0.00010973,2]
[335525362,1724307041913,-186.04064742,0.00010975,2]
[335525364,1724307041923,-500.0,0.00010978,2]
[335525366,1724307041932,-500.0,0.00010978,2]
[335525368,1724307041941,-500.0,0.00010978,2]
[335525370,1724307041951,-500.0,0.00010978,2]
[335525372,1724307041961,-500.0,0.00010978,2]
[335525374,1724307041971,-503.24575541,0.00010978,2]
[335525376,1724307041980,-268.43873969,0.00010978,2]
[335525378,1724307041989,-500.0,0.00010978,2]
[335525379,1724307041999,-500.0,0.00010978,2]
[335525381,1724307042008,-500.0,0.00010978,2]
[335525383,1724307042017,-500.0,0.00010978,2]
[335525385,1724307042026,-500.0,0.00010978,2]
[335525387,1724307042036,-257.24,0.00010978,2]
[335525389,1724307042045,-352.51,0.00010978,2]
[335525390,1724307042054,-516.6,0.00010978,2]
[335525392,1724307042063,-500.0,0.00010978,2]
[335525394,1724307042072,-500.0,0.00010978,2]
[335525396,1724307042082,-396.19,0.00010978,2]
[335525398,1724307042091,-584.84,0.00010978,2]
[335525399,1724307042100,-500.0,0.00010978,2]
[335525401,1724307042109,-500.0,0.00010978,2]
[335525403,1724307042119,-500.0,0.00010978,2]
[335525405,1724307042131,-500.0,0.00010978,2]
[335525407,1724307042141,-500.0,0.00010978,2]
[335525409,1724307042151,-500.0,0.00010978,2]
[335525411,1724307042159,-186.04064742,0.00010986,2]
[335525413,1724307042168,-264.15766872,0.00010986,2]
[335525414,1724307042178,-202.53121494,0.00010986,2]
[335525416,1724307042187,-150.20767915,0.00010986,2]
[335525418,1724307042196,-151.17925319,0.00010986,2]
[335525420,1724307042206,-150.34180584,0.00010986,2]
[335525422,1724307042215,-150.4593325,0.00010986,2]
[335525424,1724307042224,-157.082105,0.00010987,2]
[335525426,1724307042234,-500.0,0.00010987,2]
[335525428,1724307042244,-500.0,0.00010987,2]
[335525430,1724307042253,-6573.03,0.00010987,2]
[335525432,1724307042262,-500.0,0.00010987,2]
[335525434,1724307042271,-803.18,0.00010987,2]
[335525437,1724307042281,-652.0,0.00010988,2]
[335525439,1724307042294,-157.082105,0.00010988,2]
[335525441,1724307042303,-500.0,0.00010988,2]
[335525443,1724307042312,-500.0,0.00010988,2]
[335525445,1724307042321,-500.0,0.00010988,2]
[335525447,1724307042330,-500.0,0.00010988,2]
[335525449,1724307042341,-500.0,0.00010988,2]
[335525451,1724307042352,-500.0,0.00010988,2]
[335525453,1724307042362,-500.0,0.00010988,2]
[335525455,1724307042372,-500.0,0.00010988,2]
[335525457,1724307042381,-506.95486806,0.00010988,2]
[335525461,1724307042391,-500.0,0.00010988,2]
[335525465,1724307042400,-500.0,0.00010988,2]
[335525469,1724307042409,-500.0,0.00010988,2]
[335525471,1724307042418,-500.0,0.00010988,2]
[335525473,1724307042429,-500.0,0.00010988,2]
[335525475,1724307042438,-500.0,0.00010988,2]
[335525477,1724307042448,-500.0,0.00010988,2]
[335525479,1724307042457,-505.3068286,0.00010988,2]
[335525480,1724307042466,-500.0,0.00010988,2]
[335525482,1724307042475,-500.0,0.00010988,2]
[335525484,1724307042485,-500.0,0.00010988,2]
[335525487,1724307042497,-378.3,0.00010988,2]
[335525490,1724307042507,-500.0,0.00010988,2]
[335525492,1724307042515,-500.0,0.00010988,2]
[335525496,1724307042526,-500.0,0.00010988,2]
[335525497,1724307042535,-500.0,0.00010988,2]
[335525501,1724307042545,-500.0,0.00010988,2]
[335525505,1724307042557,-360.3505399,0.00010988,2]
[335525509,1724307042567,-517.61185552,0.00010988,2]
[335525512,1724307042576,-500.0,0.00010988,2]
[335525514,1724307042585,-500.0,0.00010988,2]
[335525516,1724307042595,-500.0,0.00010988,2]
[335525518,1724307042605,-501.48790565,0.00010988,2]
[335525520,1724307042614,-500.0,0.00010988,2]
[335525522,1724307042623,-501.56145246,0.00010988,2]
[335525524,1724307042632,-500.0,0.00010988,2]
[335525526,1724307042642,-500.0,0.00010988,2]
[335525528,1724307042652,-500.0,0.00010988,2]
[335525530,1724307042661,-500.0,0.00010988,2]
[335525532,1724307042670,-500.97693386,0.00010988,2]
[335525534,1724307042679,-500.0,0.00010988,2]
[335525536,1724307042688,-500.0,0.00010988,2]
[335525538,1724307042697,-562.38438643,0.00010988,2]
[335525540,1724307042706,-500.0,0.00010988,2]
[335525542,1724307042715,-540.66763798,0.00010988,2]
[335525544,1724307042724,-500.0,0.00010988,2]
[335525546,1724307042733,-500.0,0.00010988,2]
[335525548,1724307042742,-500.0,0.00010988,2]
[335525550,1724307042752,-353.31,0.00010988,2]
[335525552,1724307042760,-500.0,0.00010988,2]
[335525554,1724307042769,-629.6,0.00010988,2]
[335525556,1724307042778,-500.0,0.00010988,2]
[335525558,1724307042787,-527.62,0.00010988,2]
[335525560,1724307042797,-500.0,0.00010988,2]
[335525562,1724307042806,-162.16553472,0.00010988,2]
[335525564,1724307042815,-500.0,0.00010988,2]
[335525566,1724307042824,-500.0,0.00010988,2]
[335525567,1724307042833,-500.0,0.00010988,2]
[335525569,1724307042842,-500.0,0.00010988,2]
[335525571,1724307042851,-500.0,0.00010988,2]
[335525573,1724307042861,-500.0,0.00010988,2]
[335525575,1724307042870,-500.0,0.00010988,2]
[335525577,1724307042880,-500.0,0.00010988,2]
[335525579,1724307042889,-500.0,0.00010988,2]
[335525581,1724307042899,-500.0,0.00010988,2]
[335525583,1724307042908,-500.0,0.00010988,2]
[335525585,1724307042918,-224.32,0.00010988,2]
[335525588,1724307042928,-500.0,0.00010988,2]
[335525590,1724307042938,-500.0,0.00010988,2]
[335525592,1724307042947,-500.0,0.00010988,2]
[335525594,1724307042957,-500.0,0.00010988,2]
[335525596,1724307042971,-500.0,0.00010988,2]
[335525598,1724307042980,-500.0,0.00010988,2]
[335525599,1724307042989,-500.0,0.00010988,2]
[335525602,1724307042999,-500.0,0.00010988,2]
[335525604,1724307043009,-500.0,0.00010988,2]
[335525606,1724307043019,-500.0,0.00010988,2]
[335525608,1724307043028,-500.0,0.00010988,2]
[335525609,1724307043038,-500.0,0.00010988,2]
[335525611,1724307043048,-500.0,0.00010988,2]
[335525613,1724307043057,-500.0,0.00010988,2]
[335525615,1724307043067,-500.0,0.00010988,2]
[335525617,1724307043076,-500.0,0.00010988,2]
[335525619,1724307043085,-500.0,0.00010988,2]
[335525621,1724307043094,-500.0,0.00010988,2]
[335525623,1724307043103,-500.0,0.00010988,2]
[335525625,1724307043113,-500.0,0.00010988,2]
[335525627,1724307043122,-790.94,0.00010988,2]
[335525629,1724307043132,-790.94,0.00010988,2]
[335525631,1724307043143,-6573.03,0.00010988,2]
[335525633,1724307043154,-6573.03,0.00010988,2]
[335525646,1724307043259,-11013.74,0.00010988,2]
[335525649,1724307043269,-11013.74,0.00010988,2]
[335525652,1724307043278,-500.0,0.00010988,2]
[335525655,1724307043288,-500.0,0.00010988,2]
[335525658,1724307043297,-803.18,0.00010988,2]
[335525661,1724307043306,-803.18,0.00010988,2]
[335525664,1724307043315,-500.0,0.00010989,2]
[335525667,1724307043327,-500.0,0.00010989,2]
[335525670,1724307043335,-500.0,0.00010989,2]
[335525672,1724307043345,-500.0,0.00010989,2]
[335525675,1724307043354,-572.04090479,0.00010989,2]
[335525678,1724307043365,-2327.35,0.00010989,2]
[335525681,1724307043374,-500.0,0.00010989,2]
[335525684,1724307043383,-2327.35,0.00010989,2]
[335525687,1724307043393,-418.25315358,0.00010989,2]
[335525689,1724307043403,-500.0,0.00010989,2]
[335525691,1724307043418,-2327.35,0.00010989,2]
[335525692,1724307043427,-500.0,0.00010989,2]
[335525694,1724307043436,-2327.35,0.00010989,2]
[335525696,1724307043446,-2327.35,0.00010989,2]
[335525698,1724307043456,-500.0,0.00010989,2]
[335525700,1724307043465,-500.0,0.00010989,2]
[335525702,1724307043475,-500.0,0.00010989,2]
[335525704,1724307043484,-500.0,0.00010989,2]
[335525706,1724307043494,-500.0,0.00010989,2]
[335525708,1724307043503,-500.0,0.00010989,2]
[335525710,1724307043512,-606.83118937,0.00010989,2]
[335525712,1724307043521,-500.0,0.00010989,2]
[335525714,1724307043530,-500.0,0.00010989,2]
[335525715,1724307043539,-500.0,0.00010989,2]
[335525717,1724307043549,-527.32,0.00010989,2]
[335525719,1724307043563,-500.0,0.00010989,2]
[335525721,1724307043572,-527.32,0.00010989,2]
[335525723,1724307043582,-527.32,0.00010989,2]
[335525725,1724307043591,-527.32,0.00010989,2]
[335525727,1724307043600,-527.32,0.00010989,2]
[335525729,1724307043610,-500.0,0.00010989,2]
[335525731,1724307043619,-500.0,0.00010989,2]
[335525733,1724307043628,-500.0,0.00010989,2]
[335525735,1724307043640,-500.0,0.00010989,2]
[335525737,1724307043654,-500.0,0.00010989,2]
[335525739,1724307043663,-965.22,0.00010989,2]
[335525740,1724307043672,-965.22,0.00010989,2]
[335525742,1724307043681,-965.22,0.00010989,2]
[335525744,1724307043690,-965.22,0.00010989,2]
[335525746,1724307043699,-965.22,0.00010989,2]
[335525748,1724307043708,-602.65,0.00010989,2]
[335525750,1724307043717,-602.65,0.00010989,2]
[335525752,1724307043726,-602.65,0.00010989,2]
[335525754,1724307043736,-602.65,0.00010989,2]
[335525756,1724307043746,-602.65,0.00010989,2]
[335525758,1724307043756,-516.21,0.00010989,2]
[335525760,1724307043766,-516.21,0.00010989,2]
[335525762,1724307043775,-516.21,0.00010989,2]
[335525764,1724307043785,-516.21,0.00010989,2]
[335525766,1724307043795,-516.21,0.00010989,2]
[335525767,1724307043805,-500.0,0.00010989,2]
[335525769,1724307043815,-500.0,0.00010989,2]
[335525771,1724307043826,-537.00036284,0.00010989,2]
[335525773,1724307043835,-3590.27,0.00010989,2]
[335525775,1724307043845,-3590.27,0.00010989,2]
[335525777,1724307043854,-3590.27,0.00010989,2]
[335525779,1724307043864,-3590.27,0.00010989,2]
[335525781,1724307043874,-3590.27,0.00010989,2]